bitfinex/quotes_SOLUSD_20250102
["timestamp","ask_amount","ask_price","bid_price","bid_amount"]
[1735853082747,8.97533996,206.39,206.35,1.6291]
[1735853084053,8.97533996,206.37,206.33,6.1588]
[1735853085949,8.97533996,206.38,206.33,6.1588]
[1735853086351,12.1097,206.45,206.34,30.0]
[1735853086352,8.97533996,206.39,206.34,30.0]
[1735853087659,8.97533996,206.38,206.34,30.0]
[1735853087823,8.97533996,206.38,206.31,39.70216319]
[1735853088020,8.97533996,206.37,206.31,30.72682323]
[1735853088226,8.97533996,206.37,206.31,30.0]
[1735853088960,30.150564,206.44,206.31,30.0]
[1735853089130,8.97533996,206.38,206.31,30.0]
[1735853089330,8.97533996,206.37,206.31,30.0]
[1735853092340,30.150564,206.44,206.31,30.0]
[1735853092641,8.97533996,206.37,206.31,30.0]
[1735853092829,30.150564,206.44,206.31,30.0]
[1735853093031,8.97533996,206.38,206.31,30.0]
[1735853093870,30.150564,206.44,206.31,30.0]
[1735853093871,30.150564,206.44,206.32,8.97533996]
[1735853094166,8.97533996,206.38,206.31,38.97533996]
[1735853094731,8.97533996,206.38,206.31,30.0]
[1735853095155,30.150564,206.44,206.31,30.0]
[1735853095461,8.97533996,206.38,206.31,30.0]
[1735853096533,8.97533996,206.38,206.31,38.97533996]
[1735853097668,8.97533996,206.39,206.32,12.117]
[1735853097962,8.97533996,206.38,206.31,38.97533996]
[1735853098142,8.97533996,206.38,206.31,30.0]
[1735853100870,30.150564,206.44,206.31,30.0]
[1735853101171,8.97533996,206.38,206.31,38.97533996]
[1735853101577,8.97533996,206.39,206.32,8.97533996]
[1735853103585,8.97533996,206.39,206.34,30.0]
[1735853106256,0.12549,206.44,206.34,30.0]
[1735853106457,8.97533996,206.38,206.34,30.0]
[1735853108674,0.12549,206.44,206.34,30.0]
[1735853109058,8.97533996,206.38,206.34,30.0]
[1735853110262,8.97533996,206.37,206.31,42.1173]
[1735853111580,8.97533996,206.32,206.28,30.0]
[1735853112157,8.97533996,206.31,206.28,30.0]
[1735853112357,1.5615,206.39,206.28,30.0]
[1735853112554,8.97533996,206.35,206.28,30.0]
[1735853112772,8.97533996,206.35,206.31,30.0]
[1735853113575,8.97533996,206.36,206.31,30.0]
[1735853113785,8.97533996,206.35,206.31,30.0]
[1735853114166,20.0,206.4,206.31,30.0]
[1735853114367,8.97533996,206.36,206.31,30.0]
[1735853114593,8.97533996,206.32,206.28,137.9]
[1735853114801,8.97533996,206.32,206.27,31.6087]
[1735853115166,8.97533996,206.31,206.27,31.6087]
[1735853116787,8.97533996,206.32,206.27,31.6087]
[1735853116992,8.97533996,206.33,206.27,31.6087]
[1735853117193,8.97533996,206.32,206.27,31.6087]
[1735853118570,8.97533996,206.33,206.27,31.6087]
[1735853119499,8.97533996,206.32,206.27,31.6087]
[1735853121497,8.97533996,206.33,206.3,30.0]
[1735853122489,8.97533996,206.32,206.27,169.5087]
[1735853122797,8.97533996,206.31,206.27,31.6087]
[1735853122999,8.97533996,206.32,206.27,32.33570494]
[1735853124697,8.97533996,206.33,206.27,32.33570494]
[1735853125196,8.97533996,206.32,206.27,32.33570494]
[1735853126301,12.23839,206.39,206.27,32.33570494]
[1735853126482,8.97533996,206.32,206.27,32.33570494]
[1735853127983,8.97533996,206.31,206.27,31.6087]
[1735853130503,8.97533996,206.3,206.27,31.6087]
[1735853131298,8.97533996,206.31,206.27,31.6087]
[1735853135503,8.97533996,206.32,206.27,31.6087]
[1735853136483,8.97533996,206.33,206.27,31.6087]
[1735853137710,35.90135984,206.4,206.3,30.0]
[1735853137711,8.97533996,206.35,206.3,30.0]
[1735853137887,13.6747,206.44,206.3,30.0]
[1735853138209,8.97533996,206.36,206.3,30.0]
[1735853138702,8.97533996,206.33,206.29,137.9]
[1735853138890,8.97533996,206.31,206.27,167.9]
[1735853139803,1.5655,206.38,206.27,38.97533996]
[1735853139978,8.97533996,206.33,206.27,38.97533996]
[1735853140290,8.97533996,206.33,206.3,30.0]
[1735853140489,8.97533996,206.33,206.27,38.97533996]
[1735853140790,8.97533996,206.34,206.27,176.87533996]
[1735853141800,8.97533996,206.34,206.3,30.0]
[1735853142003,12.112,206.41,206.3,30.0]
[1735853142309,8.97533996,206.35,206.3,30.0]
[1735853146107,8.97533996,206.36,206.3,30.0]
[1735853146409,8.97533996,206.37,206.3,38.97533996]
[1735853146609,8.97533996,206.37,206.33,30.0]
[1735853148312,20.0,206.42,206.33,30.0]
[1735853148609,8.97533996,206.38,206.33,30.0]
[1735853149603,8.97533996,206.37,206.33,30.0]
[1735853151512,8.97533996,206.38,206.33,30.0]
[1735853152722,8.97533996,206.39,206.33,30.0]
[1735853152936,8.97533996,206.41,206.36,30.0]
[1735853154034,0.12549,206.47,206.36,30.0]
[1735853154240,8.97533996,206.41,206.36,30.0]
[1735853155095,8.97533996,206.42,206.36,30.72660189]
[1735853155297,8.97533996,206.41,206.36,30.72660189]
[1735853156210,8.97533996,206.41,206.37,1.6366]
[1735853156402,8.97533996,206.42,206.4,30.0]
[1735853156600,1.6305,206.48,206.4,30.0]
[1735853156601,8.97533996,206.41,206.4,30.0]
[1735853157527,12.1072,206.49,206.4,30.0]
[1735853157694,8.97533996,206.41,206.4,30.0]
[1735853159305,8.97533996,206.41,206.37,30.0]
[1735853159497,8.97533996,206.4,206.37,30.0]
[1735853159924,8.97533996,206.41,206.37,30.0]
[1735853161399,8.97533996,206.42,206.37,30.0]
[1735853162328,12.1072,206.49,206.37,30.0]
[1735853162535,8.97533996,206.42,206.4,30.0]
[1735853162835,8.97533996,206.43,206.4,30.0]
[1735853166336,8.97533996,206.44,206.4,30.0]
[1735853168741,6.4742,206.51,206.4,30.0]
[1735853168909,13.6879,206.53,206.43,30.0]
[1735853169237,8.97533996,206.46,206.43,30.0]
[1735853171441,13.6879,206.53,206.43,30.0]
[1735853171609,8.97533996,206.46,206.43,30.0]
[1735853176744,8.97533996,206.47,206.43,30.0]
[1735853179047,8.97533996,206.51,206.46,38.97533996]
[1735853179347,8.97533996,206.52,206.46,38.97533996]
[1735853181523,8.97533996,206.51,206.46,38.97533996]
[1735853181717,8.97533996,206.51,206.46,30.0]
[1735853184345,20.0,206.55,206.46,36.3699]
[1735853184532,8.97533996,206.51,206.46,36.3699]
[1735853185449,8.97533996,206.47,206.43,30.0]
[1735853186748,8.97533996,206.45,206.4,169.4172]
[1735853187045,8.97533996,206.44,206.4,31.5172]
[1735853188144,8.97533996,206.42,206.4,30.0]
[1735853188451,8.97533996,206.41,206.37,30.0]
[1735853190756,8.97533996,206.42,206.37,30.0]
[1735853191556,8.97533996,206.43,206.4,30.0]
[1735853191747,8.97533996,206.44,206.4,30.0]
[1735853194453,12.1071,206.49,206.4,30.0]
[1735853194454,8.97533996,206.45,206.4,30.0]
[1735853196355,8.97533996,206.46,206.4,30.0]
[1735853196954,8.97533996,206.47,206.4,30.0]
[1735853199033,8.97533996,206.47,206.4,38.97533996]
[1735853200154,0.12549,206.52,206.43,30.0]
[1735853200458,12.1048,206.53,206.43,30.0]
[1735853200459,8.97533996,206.49,206.43,30.0]
[1735853207253,8.97533996,206.46,206.42,137.9]
[1735853207460,0.25098,206.52,206.42,137.9]
[1735853207461,8.97533996,206.45,206.42,137.9]
[1735853207960,8.97533996,206.45,206.41,1.6363]
[1735853209254,8.97533996,206.45,206.4,30.0]
[1735853209562,8.97533996,206.43,206.4,30.0]
[1735853210850,8.97533996,206.46,206.4,30.0]
[1735853211541,8.97533996,206.45,206.4,30.0]
[1735853213564,36.62078123,206.55,206.4,30.0]
[1735853213565,19.51618123,206.55,206.44,30.0]
[1735853213739,8.97533996,206.5,206.44,30.0]
[1735853216261,8.97533996,206.48,206.44,30.0]
[1735853216962,8.97533996,206.49,206.44,30.0]
[1735853217444,8.97533996,206.49,206.42,139.41]
[1735853217445,12.1037,206.55,206.47,30.0]
[1735853217762,8.97533996,206.51,206.47,30.0]
[1735853217962,8.97533996,206.52,206.47,30.0]
[1735853218752,1.6087,206.57,206.47,30.0]
[1735853219064,8.97533996,206.52,206.47,30.0]
[1735853219369,20.0,206.56,206.47,30.0]
[1735853219547,8.97533996,206.52,206.47,30.0]
[1735853220567,8.97533996,206.49,206.47,30.0]
[1735853220942,8.97533996,206.48,206.47,30.0]
[1735853221273,8.97533996,206.48,206.43,30.0]
[1735853221446,8.97533996,206.46,206.43,30.0]
[1735853221642,8.97533996,206.47,206.43,30.0]
[1735853222572,8.97533996,206.48,206.43,30.0]
[1735853223576,8.97533996,206.49,206.46,30.0]
[1735853227876,12.1036,206.55,206.46,30.0]
[1735853228057,8.97533996,206.52,206.46,30.0]
[1735853229163,8.97533996,206.53,206.46,30.0]
[1735853230054,8.97533996,206.53,206.49,30.0]
[1735853231280,8.97533996,206.52,206.49,30.0]
[1735853233871,8.97533996,206.5,206.45,174.1386]
[1735853234268,8.97533996,206.5,206.48,30.0]
[1735853234884,8.97533996,206.51,206.48,30.0]
[1735853235657,8.97533996,206.52,206.48,30.0]
[1735853238688,8.97533996,206.53,206.48,30.0]
[1735853245822,8.97533996,206.51,206.48,30.0]
[1735853246397,8.97533996,206.51,206.47,137.9]
[1735853246905,8.97533996,206.51,206.48,30.0]
[1735853247597,8.97533996,206.53,206.48,30.0]
[1735853248608,8.97533996,206.51,206.45,174.1386]
[1735853250001,8.97533996,206.51,206.48,30.0]
[1735853250610,12.1028,206.57,206.48,30.0]
[1735853250822,8.97533996,206.52,206.48,30.0]
[1735853251610,8.97533996,206.54,206.48,30.0]
[1735853252287,8.97533996,206.53,206.48,30.0]
[1735853253291,8.97533996,206.52,206.48,30.0]
[1735853259013,8.97533996,206.54,206.48,30.0]
[1735853260306,12.1028,206.57,206.48,30.0]
[1735853260506,8.97533996,206.54,206.48,30.0]
[1735853263603,12.1001,206.61,206.51,30.0]
[1735853263806,8.97533996,206.57,206.51,30.0]
[1735853264116,8.97533996,206.57,206.51,30.72607618]
[1735853265708,8.97533996,206.59,206.54,30.0]
[1735853266420,7.41248123,206.63,206.57,30.0]
[1735853266619,8.97533996,206.6,206.57,30.0]
[1735853267405,19.51018123,206.65,206.57,30.0]
[1735853267623,8.97533996,206.62,206.57,30.0]
[1735853268351,12.0977,206.65,206.57,30.0]
[1735853268352,8.97533996,206.61,206.57,30.0]
[1735853270511,8.97533996,206.62,206.57,30.0]
[1735853272716,8.97533996,206.63,206.57,30.0]
[1735853273316,8.97533996,206.63,206.6,30.0]
[1735853273518,8.97533996,206.65,206.6,30.0]
[1735853275319,8.97533996,206.66,206.63,30.0]
[1735853277213,8.97533996,206.67,206.63,30.0]
[1735853279112,8.97533996,206.66,206.63,30.0]
[1735853279514,8.97533996,206.65,206.63,30.0]
[1735853280760,8.97533996,206.64,206.6,30.0]
[1735853281047,8.97533996,206.63,206.6,30.0]
[1735853281454,8.97533996,206.64,206.6,30.0]
[1735853282736,8.97533996,206.66,206.6,30.0]
[1735853283053,8.97533996,206.65,206.6,30.0]
[1735853284229,8.97533996,206.64,206.6,30.0]
[1735853284458,8.97533996,206.65,206.6,30.0]
[1735853286359,8.97533996,206.66,206.6,30.0]
[1735853286830,8.97533996,206.65,206.6,30.0]
[1735853287239,8.97533996,206.64,206.6,30.0]
[1735853287442,8.97533996,206.65,206.6,30.0]
[1735853290279,0.25098,206.69,206.6,30.0]
[1735853290578,8.97533996,206.65,206.6,30.0]
[1735853293075,8.97533996,206.63,206.57,167.9]
[1735853297654,8.97533996,206.63,206.57,30.0]
[1735853305084,8.97533996,206.59,206.54,36.6194]
[1735853310892,8.97533996,206.6,206.54,36.6194]
[1735853315785,14.03438618,206.66,206.54,36.6194]
[1735853315786,8.97533996,206.58,206.54,36.6194]
[1735853316090,14.03438618,206.66,206.54,36.6194]
[1735853316091,8.97533996,206.57,206.54,30.0]
[1735853321597,8.97533996,206.58,206.54,30.0]
[1735853322795,8.97533996,206.57,206.51,31.5153]
[1735853323502,8.97533996,206.58,206.51,40.49063996]
[1735853323796,8.97533996,206.57,206.51,31.5153]
[1735853324398,0.25098,206.63,206.51,40.49063996]
[1735853324573,8.97533996,206.58,206.51,40.49063996]
[1735853329103,8.97533996,206.58,206.51,31.5153]
[1735853331483,8.97533996,206.59,206.54,30.0]
[1735853332299,12.0987,206.64,206.54,30.0]
[1735853332500,1.522,206.66,206.57,30.0]
[1735853332709,7.41248123,206.67,206.57,38.97533996]
[1735853332891,8.97533996,206.64,206.57,38.97533996]
[1735853333206,8.97533996,206.64,206.57,39.70121835]
[1735853333509,8.97533996,206.65,206.6,30.0]
[1735853336707,12.0961,206.68,206.6,30.0]
[1735853337006,8.97533996,206.64,206.6,30.0]
[1735853340313,8.97533996,206.65,206.6,30.0]
[1735853342483,8.97533996,206.66,206.63,30.0]
[1735853342692,8.97533996,206.68,206.63,30.0]
[1735853346310,8.97533996,206.68,206.66,30.0]
[1735853347224,8.97533996,206.69,206.66,30.0]
[1735853347393,8.97533996,206.7,206.66,30.0]
[1735853348508,8.97533996,206.69,206.66,30.0]
[1735853350392,8.97533996,206.69,206.63,143.9649]
[1735853350393,8.97533996,206.67,206.63,30.0]
[1735853350599,8.97533996,206.64,206.6,30.0]
[1735853351507,8.97533996,206.65,206.6,30.0]
[1735853355524,8.97533996,206.66,206.6,30.0]
[1735853356213,8.97533996,206.65,206.6,30.0]
[1735853356824,8.97533996,206.66,206.6,30.0]
[1735853357212,8.97533996,206.65,206.6,30.0]
[1735853358123,8.97533996,206.66,206.6,30.0]
[1735853359006,12.0948,206.7,206.6,38.97533996]
[1735853359304,8.97533996,206.68,206.6,38.97533996]
[1735853361226,8.97533996,206.67,206.6,38.97533996]
[1735853362028,8.97533996,206.67,206.6,30.0]
[1735853362328,8.97533996,206.67,206.63,30.0]
[1735853363704,8.97533996,206.68,206.63,30.0]
[1735853364729,8.97533996,206.69,206.63,30.0]
[1735853368219,8.97533996,206.67,206.63,30.0]
[1735853368733,8.97533996,206.68,206.63,30.0]
[1735853370037,8.97533996,206.69,206.63,30.0]
[1735853370740,8.97533996,206.7,206.63,30.0]
[1735853371444,8.97533996,206.7,206.66,30.0]
[1735853376537,8.97533996,206.71,206.66,30.0]
[1735853378742,8.97533996,206.7,206.66,30.0]
[1735853390145,8.97533996,206.7,206.64,6.2806]
[1735853390451,8.97533996,206.66,206.6,30.0]
[1735853390957,8.97533996,206.65,206.6,30.0]
[1735853392655,0.12549,206.69,206.6,30.0]
[1735853392656,8.97533996,206.67,206.6,38.97533996]
[1735853393030,8.97533996,206.68,206.61,8.97533996]
[1735853393352,8.97533996,206.69,206.63,30.0]
[1735853393756,8.97533996,206.68,206.63,30.0]
[1735853397135,8.97533996,206.67,206.63,30.0]
[1735853400674,8.97533996,206.68,206.63,30.0]
[1735853403179,8.97533996,206.67,206.63,30.0]
[1735853403471,8.97533996,206.67,206.6,30.0]
[1735853403879,8.97533996,206.67,206.6,38.97533996]
[1735853404374,8.97533996,206.68,206.6,176.87533996]
[1735853408384,7.53797123,206.72,206.63,30.0]
[1735853408584,8.97533996,206.69,206.63,30.0]
[1735853408873,8.97533996,206.68,206.63,30.0]
[1735853409784,8.97533996,206.68,206.6,176.87533996]
[1735853409946,8.97533996,206.64,206.6,30.0]
[1735853410145,8.97533996,206.64,206.59,7.9092]
[1735853410349,8.97533996,206.63,206.59,7.9092]
[1735853410568,8.97533996,206.63,206.59,1.6336]
[1735853410778,8.97533996,206.61,206.57,30.0]
[1735853410946,8.97533996,206.61,206.54,175.671]
[1735853411144,8.97533996,206.6,206.54,175.671]
[1735853411675,8.97533996,206.59,206.54,37.771]
[1735853411881,12.0977,206.66,206.54,37.771]
[1735853411882,8.97533996,206.58,206.54,37.771]
[1735853412054,8.97533996,206.58,206.54,31.5834]
[1735853417086,8.97533996,206.57,206.54,31.5834]
[1735853419976,12.0987,206.64,206.54,31.5834]
[1735853420168,8.97533996,206.6,206.54,31.5834]
[1735853420372,8.97533996,206.58,206.54,31.5834]
[1735853420682,8.97533996,206.58,206.54,1.5834]
[1735853421269,8.97533996,206.57,206.54,1.5834]
[1735853424489,8.97533996,206.58,206.54,31.5834]
[1735853430099,8.97533996,206.59,206.54,31.5834]
[1735853431291,12.0955,206.69,206.6,30.0]
[1735853431495,14.82496246,206.72,206.63,38.97533996]
[1735853431786,16.38782119,206.71,206.64,8.97533996]
[1735853431996,8.97533996,206.71,206.64,8.97533996]
[1735853432806,12.0925,206.74,206.64,8.97533996]
[1735853432807,8.97533996,206.7,206.64,8.97533996]
[1735853433593,8.97533996,206.7,206.63,38.97533996]
[1735853433896,8.97533996,206.65,206.63,30.0]
[1735853436091,8.97533996,206.65,206.61,1.5032]
[1735853436299,8.97533996,206.63,206.59,30.0]
[1735853437172,8.97533996,206.6,206.56,1.5912]
[1735853437382,8.97533996,206.57,206.52,173.9902]
[1735853437609,8.97533996,206.57,206.52,36.0902]
[1735853437810,8.97533996,206.56,206.52,36.0902]
[1735853437991,8.97533996,206.57,206.52,36.0902]
[1735853442626,8.97533996,206.58,206.52,45.06553996]
[1735853442824,8.97533996,206.58,206.52,36.0902]
[1735853444321,8.97533996,206.57,206.52,36.0902]
[1735853447117,8.97533996,206.56,206.52,36.0902]
[1735853448724,8.97533996,206.57,206.52,36.0902]
[1735853451822,8.97533996,206.57,206.52,174.71628342]
[1735853452127,8.97533996,206.57,206.52,173.9902]
[1735853452797,5.0,206.67,206.56,30.0]
[1735853452798,12.0965,206.67,206.56,30.0]
[1735853453007,8.97533996,206.58,206.56,30.0]
[1735853454129,8.97533996,206.59,206.56,30.0]
[1735853454931,8.97533996,206.59,206.53,137.9]
[1735853454932,8.97533996,206.57,206.53,167.9]
[1735853455723,8.97533996,206.58,206.53,167.9]
[1735853457818,8.97533996,206.55,206.52,6.0902]
[1735853458024,8.97533996,206.55,206.51,1.6098]
[1735853458324,8.97533996,206.55,206.5,30.0]
[1735853460013,8.97533996,206.54,206.5,30.0]
[1735853460214,8.97533996,206.52,206.47,174.4977]
[1735853460410,8.97533996,206.51,206.47,174.4977]
[1735853461417,8.97533996,206.51,206.47,167.9]
[1735853464746,8.97533996,206.52,206.47,30.0]
[1735853464924,8.97533996,206.53,206.47,30.0]
[1735853466736,8.97533996,206.53,206.47,30.72622839]
[1735853466934,8.97533996,206.52,206.47,30.72622839]
[1735853467740,8.97533996,206.52,206.47,30.0]
[1735853468036,8.97533996,206.51,206.47,30.0]
[1735853468235,8.97533996,206.49,206.47,30.0]
[1735853468606,8.97533996,206.48,206.44,167.9]
[1735853469213,8.97533996,206.49,206.44,30.0]
[1735853472937,8.97533996,206.51,206.48,30.0]
[1735853473144,8.97533996,206.52,206.48,30.0]
[1735853476157,8.97533996,206.54,206.51,30.0]
[1735853484359,8.97533996,206.53,206.51,30.0]
[1735853484552,8.97533996,206.52,206.51,30.0]
[1735853484853,8.97533996,206.52,206.48,137.9]
[1735853485051,8.97533996,206.49,206.44,30.0]
[1735853485226,8.97533996,206.48,206.44,30.0]
[1735853487057,1.5544,206.51,206.44,30.0]
[1735853487235,8.97533996,206.45,206.41,30.0]
[1735853487557,8.97533996,206.42,206.41,30.0]
[1735853490159,8.97533996,206.43,206.41,30.0]
[1735853491149,8.97533996,206.44,206.41,30.0]
[1735853493571,8.97533996,206.43,206.41,30.0]
[1735853496447,8.97533996,206.44,206.41,30.0]
[1735853500070,48.00785984,206.5,206.38,30.0]
[1735853500071,8.97533996,206.43,206.38,30.0]
[1735853500263,8.97533996,206.42,206.38,30.0]
[1735853501476,8.97533996,206.4,206.38,30.0]
[1735853501645,8.97533996,206.39,206.38,30.0]
[1735853502944,8.97533996,206.39,206.33,30.0]
[1735853503142,8.97533996,206.37,206.33,30.0]
[1735853505274,8.97533996,206.4,206.36,30.0]
[1735853505767,8.97533996,206.39,206.36,30.0]
[1735853505944,8.97533996,206.38,206.36,30.0]
[1735853506841,8.97533996,206.39,206.36,30.0]
[1735853507040,8.97533996,206.38,206.36,30.0]
[1735853508970,12.1099,206.45,206.36,30.0]
[1735853508971,8.97533996,206.37,206.36,30.0]
[1735853511457,8.47533996,206.37,206.36,30.0]
[1735853517874,8.97533996,206.38,206.36,30.0]
[1735853518468,8.97533996,206.37,206.36,30.0]
[1735853520296,8.47533996,206.37,206.36,30.0]
[1735853520702,8.47533996,206.37,206.33,167.9]
[1735853520993,8.97533996,206.36,206.33,30.0]
[1735853521195,8.97533996,206.34,206.33,30.0]
[1735853522392,8.97533996,206.35,206.33,30.0]
[1735853523614,8.97533996,206.34,206.33,30.0]
[1735853523802,8.97533996,206.34,206.3,30.0]
[1735853523998,35.90135984,206.4,206.27,30.0]
[1735853523999,8.97533996,206.31,206.27,30.0]
[1735853524177,0.12549,206.38,206.27,30.0]
[1735853524178,8.97533996,206.28,206.27,30.0]
[1735853529470,8.97533996,206.28,206.24,30.0]
[1735853529690,8.97533996,206.27,206.24,30.0]
[1735853529895,8.97533996,206.26,206.24,30.0]
[1735853530104,8.97533996,206.25,206.22,0.0954864]
[1735853530300,8.97533996,206.23,206.22,0.0954864]
[1735853531274,0.25098,206.31,206.22,0.0954864]
[1735853531476,8.97533996,206.23,206.22,0.0954864]
[1735853532279,8.97533996,206.26,206.22,0.0954864]
[1735853532669,8.97533996,206.26,206.24,30.0]
[1735853533292,1.5785,206.35,206.24,30.0]
[1735853533504,8.97533996,206.25,206.22,0.0954864]
[1735853533682,8.97533996,206.24,206.22,0.0954864]
[1735853536697,8.97533996,206.23,206.22,0.0954864]
[1735853550223,1.5242,206.29,206.22,0.0954864]
[1735853550411,8.97533996,206.23,206.22,0.0954864]
[1735853573331,1.5242,206.29,206.22,0.0954864]
[1735853573528,8.97533996,206.23,206.22,0.0954864]
[1735853579039,0.12549,206.29,206.22,0.0954864]
[1735853579211,8.97533996,206.23,206.22,0.0954864]
[1735853582924,8.97533996,206.24,206.22,0.0954864]
[1735853584143,8.97533996,206.23,206.22,0.0954864]
[1735853588146,12.1198,206.28,206.22,0.0954864]
[1735853588334,8.97533996,206.23,206.22,0.0954864]
[1735853598430,9.10082996,206.23,206.22,0.0954864]
[1735853601433,12.37388,206.22,206.13,6.2982]
[1735853601657,8.97533996,206.14,206.11,37.6129465]
[1735853601839,8.97533996,206.13,206.11,37.6129465]
[1735853602360,8.97533996,206.12,206.08,7.6129465]
[1735853602532,1.91628,206.19,206.08,7.6129465]
[1735853602533,8.97533996,206.09,206.08,7.6129465]
[1735853603365,9.10082996,206.09,206.08,7.6129465]
[1735853603659,8.97533996,206.09,206.08,7.6129465]
[1735853604057,8.97533996,206.09,206.02,7.6129465]
[1735853604245,8.97533996,206.08,206.02,7.6129465]
[1735853604447,8.97533996,206.09,206.04,30.0]
[1735853604650,8.97533996,206.1,206.04,30.0]
[1735853604841,12.1255,206.18,206.07,30.0]
[1735853605058,8.97533996,206.11,206.07,30.0]
[1735853605561,0.12549,206.17,206.07,30.0]
[1735853605865,8.97533996,206.13,206.07,31.5927]
[1735853606037,8.97533996,206.12,206.07,32.32036866]
[1735853606875,8.97533996,206.12,206.1,30.0]
[1735853610374,8.97533996,206.12,206.07,169.4927]
[1735853610672,8.97533996,206.11,206.07,31.5927]
[1735853616874,8.97533996,206.13,206.08,0.72770062]
[1735853617072,8.97533996,206.1,206.07,31.5927]
[1735853619070,8.97533996,206.08,206.04,30.0]
[1735853619243,8.97533996,206.06,206.01,187.6905]
[1735853619675,8.97533996,206.05,206.01,37.6555]
[1735853621575,8.97533996,206.06,206.01,37.6555]
[1735853622544,8.97533996,206.08,206.01,37.6555]
[1735853622750,8.97533996,206.08,206.02,0.72786952]
[1735853623057,20.0,206.13,206.05,30.0]
[1735853623263,8.97533996,206.08,206.02,30.72786952]
[1735853625982,8.97533996,206.08,206.05,30.0]
[1735853627067,8.97533996,206.07,206.05,30.0]
[1735853627367,8.97533996,206.07,206.02,167.9]
[1735853629788,8.97533996,206.08,206.02,167.9]
[1735853631391,8.97533996,206.08,206.03,0.72784888]
[1735853632084,8.97533996,206.09,206.03,0.72784888]
[1735853632669,8.97533996,206.09,206.05,30.0]
[1735853636285,1.5948,206.15,206.08,30.0]
[1735853636476,8.97533996,206.12,206.08,30.0]
[1735853641207,8.97533996,206.11,206.08,30.0]
[1735853645366,0.25098,206.19,206.08,30.0]
[1735853645588,8.97533996,206.11,206.08,30.0]
[1735853646377,8.97533996,206.1,206.08,30.0]
[1735853647202,8.97533996,206.11,206.08,30.0]
[1735853648704,0.25098,206.19,206.08,30.0]
[1735853649093,8.97533996,206.12,206.08,30.0]
[1735853650407,0.25098,206.19,206.08,30.0]
[1735853650598,8.97533996,206.11,206.08,30.0]
[1735853652416,0.25098,206.19,206.08,30.0]
[1735853652626,0.12549,206.19,206.08,30.0]
[1735853652793,8.97533996,206.14,206.08,30.0]
[1735853653114,8.97533996,206.15,206.11,30.0]
[1735853655517,0.25098,206.24,206.11,30.0]
[1735853655814,8.97533996,206.16,206.11,30.0]
[1735853656915,8.97533996,206.17,206.14,30.0]
[1735853658123,8.97533996,206.18,206.14,30.0]
[1735853659117,8.97533996,206.16,206.14,30.0]
[1735853659287,8.97533996,206.15,206.08,169.5138]
[1735853659487,8.97533996,206.1,206.08,31.6138]
[1735853659698,8.97533996,206.09,206.08,30.0]
[1735853660420,8.97533996,206.09,206.05,30.0]
[1735853663826,8.97533996,206.12,206.05,30.0]
[1735853664031,8.97533996,206.12,206.05,30.72770406]
[1735853664830,8.97533996,206.12,206.05,39.70304402]
[1735853665236,8.97533996,206.12,206.08,30.0]
[1735853665532,8.97533996,206.13,206.08,30.0]
[1735853669136,0.12549,206.17,206.08,30.0]
[1735853669438,8.97533996,206.13,206.08,30.0]
[1735853671522,8.97533996,206.14,206.08,30.0]
[1735853672946,8.97533996,206.15,206.08,30.0]
[1735853673127,8.97533996,206.15,206.08,38.97533996]
[1735853674641,12.1252,206.19,206.08,38.97533996]
[1735853674846,8.97533996,206.15,206.08,38.97533996]
[1735853675017,8.97533996,206.16,206.08,38.97533996]
[1735853675218,8.97533996,206.16,206.11,30.0]
[1735853676846,8.97533996,206.15,206.11,30.0]
[1735853680826,8.97533996,206.16,206.11,30.0]
[1735853682334,8.97533996,206.15,206.11,30.0]
[1735853686944,8.97533996,206.13,206.08,30.0]
[1735853687143,8.97533996,206.1,206.05,167.9]